bitfinex/quotes_SOLUSD_20251018
["timestamp","ask_amount","ask_price","bid_price","bid_amount"]
[1760796156111,0.82,185.87,185.8,1.24821313]
[1760796156324,0.7,185.87,185.8,6.63025379]
[1760796156722,25.69412651,185.88,185.77,10.87647521]
[1760796156723,0.82,185.86,185.77,11.41477525]
[1760796156931,0.7,185.85,185.75,17.50817579]
[1760796157116,0.82,185.84,185.75,17.50817579]
[1760796157328,0.7,185.83,185.74,10.87647521]
[1760796157506,0.82,185.82,185.69,0.53853196]
[1760796157708,22.88,185.78,185.68,0.71]
[1760796158007,0.82,185.77,185.68,0.71]
[1760796158212,0.82,185.77,185.69,0.53853196]
[1760796158436,0.82,185.77,185.69,10.87647521]
[1760796158607,0.7,185.76,185.69,10.87647521]
[1760796159517,0.7,185.76,185.7,0.53850296]
[1760796160120,0.7,185.76,185.69,11.58647521]
[1760796160629,23.7,185.75,185.67,11.78647521]
[1760796160811,0.7,185.74,185.67,0.2]
[1760796161016,0.12,185.73,185.67,0.2]
[1760796161226,0.7,185.72,185.67,0.2]
[1760796161430,0.12,185.77,185.68,1.24856096]
[1760796161629,23.58,185.78,185.69,11.58647521]
[1760796161809,0.82,185.77,185.7,0.53850296]
[1760796162006,0.82,185.77,185.69,0.71]
[1760796162216,0.82,185.77,185.67,0.2]
[1760796162217,22.88,185.75,185.67,0.2]
[1760796162403,0.82,185.74,185.67,0.2]
[1760796163232,0.7,185.74,185.68,1.21856096]
[1760796163535,0.82,185.74,185.68,1.21856096]
[1760796163726,0.7,185.74,185.68,1.21856096]
[1760796164027,22.88,185.76,185.68,1.21856096]
[1760796164227,0.66,185.75,185.69,0.68]
[1760796164409,0.66,185.75,185.7,10.87647521]
[1760796164612,0.66,185.75,185.7,11.55647521]
[1760796165036,0.66,185.74,185.68,0.68]
[1760796165521,0.66,185.74,185.68,1.21856096]
[1760796165717,0.66,185.73,185.67,0.2]
[1760796166036,0.78,185.73,185.67,0.2]
[1760796167123,23.66,185.73,185.67,0.2]
[1760796167338,5.38357635,185.76,185.67,0.2]
[1760796167339,0.12,185.76,185.69,10.87647521]
[1760796167515,0.66,185.78,185.71,10.87647521]
[1760796167715,0.66,185.78,185.72,0.53844497]
[1760796168637,0.66,185.8,185.74,10.87647521]
[1760796168931,0.66,185.8,185.75,0.538358]
[1760796169128,0.66,185.8,185.75,1.218358]
[1760796170034,0.66,185.82,185.76,11.55647521]
[1760796170234,0.66,185.82,185.76,11.41480423]
[1760796170417,0.66,185.81,185.74,1.21838699]
[1760796170619,0.66,185.8,185.74,0.53838699]
[1760796170927,23.54,185.82,185.75,10.87647521]
[1760796171233,23.54,185.82,185.75,11.55647521]
[1760796171530,0.66,185.82,185.76,0.53832902]
[1760796171729,0.78,185.85,185.77,0.68]
[1760796171916,0.78,185.85,185.78,11.41474628]
[1760796171917,0.66,185.85,185.78,11.41474628]
[1760796172117,0.66,185.85,185.78,12.09474628]
[1760796172522,0.78,185.87,185.79,0.68]
[1760796172830,0.78,185.87,185.8,0.53821313]
[1760796173428,22.88,185.86,185.8,0.53821313]
[1760796173646,0.66,185.85,185.8,0.53821313]
[1760796174032,0.66,185.85,185.8,1.21821313]
[1760796174833,23.0,185.87,185.8,0.53821313]
[1760796175032,0.66,185.87,185.81,0.53818416]
[1760796175237,0.66,185.87,185.81,1.21818416]
[1760796175415,0.66,185.89,185.82,11.55647521]
[1760796175616,0.66,185.89,185.82,16.93787642]
[1760796175931,0.66,185.89,185.83,1.21812624]
[1760796177920,3.47364901,185.91,185.84,11.55647521]
[1760796178122,3.59364901,185.91,185.84,11.55647521]
[1760796179025,3.59364901,185.91,185.83,0.53812624]
[1760796179026,0.66,185.9,185.83,0.53812624]
[1760796179438,0.12,185.89,185.81,11.41465937]
[1760796179618,0.66,185.88,185.81,11.41465937]
[1760796179819,0.66,185.87,185.81,0.53818416]
[1760796180127,0.66,185.87,185.8,0.53821313]
[1760796180128,0.78,185.87,185.8,0.53821313]
[1760796180617,0.78,185.87,185.77,10.87647521]
[1760796180816,0.66,185.86,185.77,10.87647521]
[1760796181038,0.78,185.85,185.77,11.41477525]
[1760796181218,0.66,185.84,185.77,11.41477525]
[1760796181417,0.66,185.83,185.77,11.41477525]
[1760796183539,0.66,185.83,185.77,12.09477525]
[1760796184119,0.12,185.87,185.77,0.53830004]
[1760796184324,0.66,185.82,185.75,0.68]
[1760796184519,0.78,185.82,185.75,0.68]
[1760796184920,0.78,185.82,185.74,16.99999999]
[1760796185128,0.66,185.81,185.74,16.99999999]
[1760796185643,0.66,185.81,185.74,17.67999999]
[1760796185943,0.83,185.8,185.73,16.99999999]
[1760796186134,0.71,185.79,185.73,16.99999999]
[1760796186331,0.83,185.78,185.71,0.7]
[1760796186647,0.83,185.78,185.68,0.7]
[1760796186847,0.83,185.78,185.67,11.07647521]
[1760796187028,0.71,185.77,185.67,0.2]
[1760796187235,0.12,185.76,185.67,0.2]
[1760796187447,22.88,185.74,185.67,0.2]
[1760796187752,0.83,185.74,185.67,1.43858997]
[1760796188054,0.83,185.74,185.67,6.12438421]
[1760796188252,23.0,185.75,185.68,0.7]
[1760796188551,0.71,185.77,185.69,11.41500717]
[1760796188848,0.71,185.76,185.69,11.41500717]
[1760796189034,0.83,185.76,185.69,1.23853196]
[1760796189234,22.88,185.77,185.71,10.87647521]
[1760796189441,0.71,185.79,185.72,1.23844497]
[1760796189632,0.71,185.79,185.73,0.7]
[1760796190143,23.59,185.79,185.72,0.53844497]
[1760796190350,0.12,185.78,185.72,0.53844497]
[1760796190646,23.71,185.78,185.71,11.57647521]
[1760796190842,23.71,185.78,185.69,0.7]
[1760796190843,0.71,185.77,185.69,0.7]
[1760796191151,0.12,185.76,185.69,11.57647521]
[1760796191337,0.71,185.75,185.68,11.41503617]
[1760796191539,0.71,185.75,185.69,0.7]
[1760796192050,0.71,185.75,185.67,0.2]
[1760796192349,0.12,185.74,185.67,0.2]
[1760796192538,0.12,185.74,185.67,0.9]
[1760796193035,0.12,185.74,185.68,0.7]
[1760796194450,0.7,185.73,185.67,0.2]
[1760796194852,0.82,185.73,185.67,0.2]
[1760796195651,0.7,185.73,185.67,0.2]
[1760796195831,23.0,185.72,185.67,0.2]
[1760796196031,0.7,185.71,185.67,0.2]
[1760796196358,0.82,185.7,185.67,0.2]
[1760796198055,0.7,185.69,185.67,0.2]
[1760796199440,0.7,185.68,185.67,0.2]
[1760796201952,6.08560965,185.68,185.67,0.2]
[1760796202153,6.20560965,185.68,185.67,0.2]
[1760796202339,29.08560965,185.68,185.67,0.2]
[1760796202663,6.20560965,185.68,185.67,0.2]
[1760796202872,23.7,185.68,185.67,0.2]
[1760796203156,23.0,185.68,185.67,0.2]
[1760796203360,22.88,185.7,185.67,0.2]
[1760796203566,0.12,185.69,185.67,0.2]
[1760796203860,0.7,185.68,185.67,0.2]
[1760796204336,23.0,185.69,185.67,0.2]
[1760796204762,23.7,185.69,185.67,0.2]
[1760796205141,0.7,185.68,185.67,0.2]
[1760796206038,25.69656055,185.71,185.67,0.2]
[1760796206258,2.81656055,185.71,185.67,0.2]
[1760796206650,3.51656055,185.71,185.67,0.2]
[1760796207362,0.82,185.7,185.67,0.2]
[1760796207741,0.12,185.7,185.67,0.2]
[1760796207958,2.93656055,185.71,185.67,0.2]
[1760796208145,3.63656055,185.71,185.67,0.2]
[1760796208773,0.7,185.7,185.67,0.2]
[1760796208955,0.82,185.69,185.67,0.2]
[1760796209463,0.12,185.69,185.67,0.2]
[1760796209760,0.82,185.69,185.67,0.2]
[1760796210157,0.7,185.68,185.67,0.2]
[1760796210361,23.58,185.68,185.67,0.2]
[1760796212671,23.7,185.68,185.67,0.2]
[1760796213769,23.58,185.68,185.67,0.2]
[1760796214351,2.81656055,185.71,185.67,0.2]
[1760796214552,0.12,185.7,185.67,0.2]
[1760796214756,2.81656055,185.71,185.67,0.86]
[1760796214940,2.93656055,185.71,185.67,0.86]
[1760796215150,3.63656055,185.71,185.67,0.2]
[1760796215553,26.51656055,185.71,185.67,0.2]
[1760796216564,3.63656055,185.71,185.67,0.2]
[1760796217239,2.93656055,185.71,185.67,0.2]
[1760796217444,22.88,185.74,185.68,0.66]
[1760796217664,0.12,185.73,185.68,0.66]
[1760796217862,0.82,185.73,185.68,0.66]
[1760796218960,0.12,185.73,185.67,6.12447153]
[1760796219150,2.81612327,185.74,185.69,0.66]
[1760796219358,0.7,185.78,185.71,10.87647521]
[1760796219564,0.7,185.78,185.72,1.19844497]
[1760796220169,0.82,185.78,185.72,1.19844497]
[1760796220364,23.7,185.78,185.72,1.19844497]
[1760796220766,23.0,185.78,185.71,10.87647521]
[1760796221056,0.7,185.77,185.7,0.66]
[1760796221261,0.12,185.76,185.7,0.66]
[1760796221464,0.82,185.76,185.7,0.66]
[1760796222067,23.7,185.76,185.68,12.07503617]
[1760796222975,0.7,185.75,185.68,17.46063452]
[1760796223268,0.7,185.75,185.69,0.66]
[1760796223474,0.84,185.74,185.67,0.2]
[1760796224563,22.88,185.7,185.67,0.2]
[1760796224762,0.84,185.69,185.67,0.2]
[1760796224963,0.72,185.68,185.67,0.2]
[1760796226382,23.6,185.68,185.67,0.2]
[1760796227779,0.72,185.68,185.67,0.2]
[1760796228079,0.84,185.68,185.67,0.2]
[1760796228581,6.22560965,185.68,185.67,0.2]
[1760796230570,17.10208486,185.68,185.67,0.2]
[1760796232263,39.98208486,185.68,185.67,0.2]
[1760796232770,17.10208486,185.68,185.67,0.2]
[1760796233979,20.23856243,185.68,185.67,1e-08]
[1760796234180,29.9383046,185.68,185.67,1e-08]
[1760796237083,33.75647521,185.66,185.65,1e-08]
[1760796237289,10.99647521,185.66,185.65,1e-08]
[1760796237587,11.71647521,185.66,185.65,1e-08]
[1760796237973,17.10266501,185.66,185.65,1e-08]
[1760796240372,23.55142302,185.66,185.65,1e-08]
[1760796240675,132.23888475,185.66,185.65,1e-08]
[1760796240880,132.11888475,185.66,185.65,1e-08]
[1760796241288,134.11888474,185.66,185.65,1e-08]
[1760796242682,159.11888474,185.66,185.65,1e-08]
[1760796243495,134.11888474,185.66,185.65,1e-08]
[1760796243702,134.11888474,185.66,185.59,1e-08]
[1760796243703,33.75647521,185.62,185.59,1e-08]
[1760796243894,0.12,185.61,185.59,1e-08]
[1760796244093,37.8764752,185.6,185.59,1e-08]
[1760796244306,24.71316424,185.6,185.59,1e-08]
[1760796244608,25.43316424,185.6,185.59,1e-08]
[1760796244982,31.82062597,185.6,185.59,1e-08]
[1760796245693,10.87647521,185.52,185.47,0.2]
[1760796246071,34.59647521,185.52,185.47,0.2]
[1760796246300,39.98672963,185.52,185.47,0.2]
[1760796246673,10.87647521,185.51,185.47,0.2]
[1760796246892,0.12,185.5,185.47,0.2]
[1760796247174,10.87647521,185.49,185.47,0.2]
[1760796247374,11.59647521,185.49,185.47,0.2]
[1760796247574,0.12,185.48,185.47,0.2]
[1760796247788,11.71647521,185.48,185.47,0.2]
[1760796248882,16.38789207,185.48,185.47,0.2]
[1760796249194,5.51141686,185.48,185.47,0.91]
[1760796249393,5.51141686,185.48,185.47,0.2]
[1760796250204,8.33206423,185.48,185.47,0.2]
[1760796250502,2.94064737,185.48,185.47,0.91]
[1760796251403,25.82064737,185.48,185.47,0.91]
[1760796251705,8.33206423,185.48,185.47,0.2]
[1760796251874,25.82064737,185.48,185.47,0.2]
[1760796252294,42.08853944,185.48,185.47,0.2]
[1760796252580,42.80853944,185.48,185.47,0.2]
[1760796252782,42.08853944,185.48,185.47,0.2]
[1760796254803,42.78853944,185.48,185.47,0.2]
[1760796255179,42.08853944,185.48,185.47,0.2]
[1760796255379,31.21206423,185.48,185.47,0.2]
[1760796255574,42.08853944,185.48,185.47,0.2]
[1760796255796,25.82064737,185.48,185.47,0.2]
[1760796255993,2.94064737,185.48,185.47,0.86]
[1760796256297,2.82064737,185.48,185.47,0.86]
[1760796258714,2.94064737,185.48,185.47,0.86]
[1760796259100,2.82064737,185.48,185.47,0.86]
[1760796259483,2.94064737,185.48,185.47,0.86]
[1760796259692,2.82064737,185.48,185.47,0.86]
[1760796259887,22.88,185.51,185.47,0.86]
[1760796260086,0.12,185.5,185.48,0.66]
[1760796260407,2.8195903,185.5,185.48,0.66]
[1760796260595,0.12,185.57,185.48,0.66]
[1760796260791,2.81909587,185.53,185.48,0.66]
[1760796261297,22.88,185.56,185.48,0.66]
[1760796261491,2.81891108,185.54,185.48,0.66]
[1760796261692,0.12,185.53,185.48,0.66]
[1760796262206,0.12,185.53,185.49,0.66]
[1760796262803,0.12,185.53,185.5,0.66]
[1760796263104,0.12,185.53,185.48,0.66]
[1760796263307,22.88,185.5,185.49,0.66]
[1760796263489,22.88,185.5,185.47,0.2]
[1760796263688,0.12,185.49,185.47,0.2]
[1760796263898,0.12,185.49,185.47,0.86]
[1760796264409,0.12,185.49,185.47,0.2]
[1760796264614,34.45647521,185.48,185.47,0.2]
[1760796265087,39.84789207,185.48,185.47,0.2]
[1760796265292,39.96789207,185.48,185.47,0.2]
[1760796268105,23.0,185.48,185.47,0.2]
[1760796269084,0.12,185.5,185.47,0.2]
[1760796269290,22.88,185.48,185.47,0.2]
[1760796269704,28.39093606,185.5,185.47,0.86]
[1760796270111,28.39093606,185.5,185.47,0.2]
[1760796270499,0.12,185.5,185.48,0.66]
[1760796270693,0.12,185.53,185.49,0.66]
[1760796271218,22.88,185.51,185.49,0.66]
[1760796271395,0.12,185.5,185.49,0.66]
[1760796271608,22.88,185.49,185.47,0.2]
[1760796271801,0.12,185.48,185.47,0.2]
[1760796273721,6.21141686,185.48,185.47,0.2]
[1760796274591,17.08789207,185.48,185.47,0.2]
[1760796274991,16.38789207,185.48,185.47,0.2]
[1760796275196,17.08789207,185.48,185.47,0.2]
[1760796278109,33.27789207,185.48,185.47,0.2]
[1760796279505,17.08789207,185.48,185.47,0.2]
[1760796283301,16.38789207,185.48,185.47,0.2]
[1760796284214,17.05789207,185.48,185.47,0.2]
[1760796284715,16.38789207,185.48,185.47,0.2]
[1760796285310,17.05789207,185.48,185.47,0.2]
[1760796285507,6.18141686,185.48,185.47,0.2]
[1760796286011,16.38789207,185.48,185.47,0.2]
[1760796287017,17.05789207,185.48,185.47,0.2]
[1760796287426,16.38789207,185.48,185.47,0.2]
[1760796287996,0.12,185.48,185.47,0.2]
[1760796288221,0.12,185.48,185.47,0.88]
[1760796288415,5.51141686,185.48,185.47,0.2]
[1760796289001,0.12,185.48,185.47,0.2]
[1760796289199,0.12,185.48,185.47,0.88]
[1760796289405,0.12,185.48,185.47,0.2]
[1760796289406,22.88,185.48,185.47,0.2]
[1760796289609,23.0,185.48,185.47,0.2]
[1760796290825,22.88,185.48,185.47,0.88]
[1760796291016,22.88,185.48,185.47,0.2]
[1760796291826,25.70021369,185.48,185.47,0.2]
[1760796293804,31.21163055,185.48,185.47,0.2]
[1760796296112,25.82021369,185.48,185.47,0.2]
[1760796299838,2.94021369,185.48,185.47,0.2]
[1760796300133,2.94021369,185.48,185.47,0.88]
[1760796300909,2.94021369,185.48,185.47,0.2]
[1760796302112,9.00163055,185.48,185.47,0.2]
[1760796302308,31.88163055,185.48,185.47,0.2]
[1760796302524,9.00163055,185.48,185.47,0.2]
[1760796303020,19.87810576,185.48,185.47,0.2]
[1760796304018,42.75810576,185.48,185.47,0.2]
[1760796304226,19.87810576,185.48,185.47,0.2]
[1760796308322,36.06810576,185.48,185.47,0.2]
[1760796310541,19.20810576,185.48,185.47,0.2]
[1760796310729,42.78810576,185.48,185.47,0.2]
[1760796310930,19.90810576,185.48,185.47,0.2]
[1760796312638,36.09810576,185.48,185.47,0.2]
[1760796312838,61.09810576,185.48,185.47,0.2]
[1760796313142,36.09810576,185.48,185.47,0.2]
[1760796313349,33.75647521,185.44,185.43,0.2]
[1760796313645,33.87647521,185.44,185.43,0.2]
[1760796313839,34.57647521,185.44,185.43,0.2]
[1760796315049,39.96905502,185.44,185.43,0.2]
[1760796315224,41.96905501,185.44,185.43,0.2]
[1760796315728,96.64050453,185.44,185.4,0.2]
[1760796316526,27.06647521,185.41,185.4,0.2]
[1760796316820,10.99647521,185.41,185.4,0.2]
[1760796317024,16.38992755,185.41,185.4,0.2]
[1760796317626,23.0,185.41,185.4,0.92]
[1760796317837,0.12,185.41,185.4,0.92]
[1760796318039,0.12,185.41,185.4,0.2]
[1760796318245,23.0,185.41,185.4,0.2]
[1760796318834,0.12,185.41,185.4,0.2]
[1760796319246,17.08992755,185.41,185.4,0.2]
[1760796319433,39.96992755,185.41,185.4,0.2]
[1760796319746,17.08992755,185.41,185.4,0.2]
[1760796320131,16.38992755,185.41,185.4,0.2]
[1760796320335,0.12,185.41,185.4,0.2]
[1760796320541,23.0,185.41,185.4,0.92]
[1760796321735,0.12,185.41,185.4,0.92]
[1760796321937,0.12,185.46,185.4,0.92]
[1760796322133,0.12,185.46,185.41,0.72]
[1760796322134,2.94071706,185.46,185.41,0.72]
[1760796322344,22.88,185.45,185.4,0.2]
[1760796322543,22.88,185.41,185.4,0.2]
[1760796322757,23.0,185.41,185.4,0.92]
[1760796323054,23.0,185.41,185.4,0.2]
[1760796323563,0.12,185.41,185.4,0.92]
[1760796323733,22.88,185.42,185.4,0.92]
[1760796323934,0.12,185.41,185.4,0.2]
[1760796324467,0.12,185.41,185.4,0.92]
[1760796324769,0.12,185.43,185.4,0.92]
[1760796324934,0.12,185.43,185.4,0.2]
[1760796325134,22.88,185.42,185.4,0.2]
[1760796325334,0.12,185.41,185.4,0.2]
[1760796325848,0.12,185.41,185.4,0.92]
[1760796326048,0.12,185.45,185.4,0.92]
[1760796326245,22.88,185.44,185.41,0.72]
[1760796326568,0.12,185.43,185.42,0.72]
[1760796326746,0.12,185.43,185.4,0.2]
[1760796326938,23.0,185.43,185.4,0.2]
[1760796327138,28.39295279,185.43,185.4,0.2]
[1760796328252,23.0,185.43,185.41,0.72]
[1760796328443,0.12,185.43,185.41,0.72]
[1760796328832,0.12,185.43,185.42,0.72]
[1760796329035,0.12,185.43,185.4,0.2]
[1760796329256,0.12,185.43,185.41,0.72]
[1760796329936,0.12,185.43,185.42,0.72]
[1760796330539,0.12,185.44,185.42,0.72]
[1760796330760,0.12,185.44,185.43,0.72]
[1760796331656,23.0,185.45,185.43,0.72]
[1760796331856,23.0,185.45,185.44,0.72]
[1760796332039,0.12,185.45,185.44,0.72]
[1760796333357,0.12,185.48,185.44,0.72]
[1760796333659,2.81997656,185.5,185.44,0.72]
[1760796333851,0.12,185.49,185.44,6.11255545]
[1760796334161,0.7,185.48,185.42,0.72]
[1760796334363,0.12,185.47,185.42,0.72]
[1760796334659,0.7,185.46,185.4,0.92]
[1760796334862,0.12,185.45,185.41,0.72]
[1760796335059,0.12,185.45,185.42,0.72]
[1760796335762,0.12,185.47,185.42,0.72]
[1760796335959,0.12,185.47,185.43,0.72]
[1760796336369,23.0,185.47,185.43,0.72]
[1760796340065,0.82,185.47,185.41,0.72]
[1760796340654,0.82,185.47,185.4,0.2]
[1760796340858,0.82,185.47,185.4,0.92]
[1760796341257,0.12,185.47,185.41,0.72]
[1760796344374,0.12,185.47,185.41,6.11338004]
[1760796344670,0.12,185.48,185.42,0.65]
[1760796346678,22.88,185.47,185.42,0.65]
[1760796346883,0.12,185.46,185.43,0.65]
[1760796347075,0.12,185.46,185.44,0.65]
[1760796347268,0.12,185.48,185.44,0.65]
[1760796347674,23.0,185.48,185.44,0.65]
[1760796347979,0.12,185.48,185.45,0.65]
[1760796348180,0.12,185.49,185.46,0.65]
[1760796348369,0.12,185.49,185.4,0.2]
[1760796348576,0.79,185.49,185.41,0.65]
[1760796349166,0.12,185.49,185.41,0.65]
[1760796350179,0.12,185.49,185.42,0.53931614]
[1760796350389,0.79,185.53,185.44,5.39257981]
[1760796350568,22.88,185.52,185.45,0.65]
[1760796350774,23.0,185.51,185.45,0.65]
[1760796350964,0.12,185.51,185.45,0.65]
[1760796356787,0.79,185.51,185.45,0.65]
[1760796356970,22.88,185.49,185.45,0.65]
[1760796357171,0.12,185.48,185.45,0.65]
[1760796359387,0.12,185.48,185.41,5.39341293]
[1760796359689,0.12,185.48,185.43,0.65]
[1760796359893,0.12,185.48,185.44,0.65]
[1760796360488,0.67,185.47,185.41,0.65]
[1760796360688,0.12,185.46,185.41,0.65]
[1760796360878,0.67,185.45,185.4,0.2]
[1760796361082,0.12,185.44,185.41,0.65]
[1760796361300,22.88,185.47,185.42,0.65]
[1760796361301,0.12,185.46,185.42,0.65]
[1760796361468,0.79,185.46,185.42,0.65]
[1760796361668,0.79,185.46,185.43,0.65]
[1760796361669,0.12,185.46,185.43,0.65]
[1760796361877,22.88,185.48,185.43,0.65]
[1760796362273,0.12,185.5,185.43,0.65]
[1760796363166,23.0,185.5,185.43,0.65]
[1760796363371,23.0,185.5,185.43,1.18928706]
[1760796363572,23.67,185.5,185.43,0.65]
[1760796365089,0.79,185.5,185.4,17.84999999]
[1760796365298,0.67,185.49,185.41,0.65]
[1760796365488,0.12,185.48,185.41,0.65]
[1760796366378,0.12,185.48,185.41,6.5827622]
[1760796366693,0.7,185.48,185.42,0.65]
[1760796366896,0.12,185.47,185.42,0.65]
[1760796367099,0.12,185.47,185.43,0.65]
[1760796368689,0.12,185.47,185.4,5.59366381]
[1760796368690,0.82,185.47,185.41,0.65]
[1760796368872,0.12,185.47,185.41,0.65]
[1760796369074,0.12,185.48,185.41,0.65]
[1760796369688,0.82,185.48,185.41,0.65]
[1760796369894,23.7,185.48,185.41,0.65]
[1760796372203,23.7,185.48,185.41,6.04343508]
[1760796372400,23.7,185.48,185.41,5.39343508]
[1760796372581,0.12,185.48,185.42,0.65]
[1760796372778,0.12,185.49,185.42,0.65]
[1760796373499,0.79,185.49,185.42,0.65]
[1760796373889,0.79,185.49,185.42,6.04309761]
[1760796374100,0.79,185.49,185.43,0.7]
[1760796374907,0.79,185.49,185.4,0.2]
[1760796375113,29.06115677,185.49,185.4,0.2]
[1760796375286,10.87647521,185.48,185.4,0.2]
[1760796375487,0.12,185.47,185.4,0.2]
[1760796375791,22.88,185.44,185.4,0.2]
[1760796375993,0.79,185.43,185.4,0.2]
[1760796376191,0.67,185.42,185.4,0.2]
[1760796376391,0.12,185.43,185.4,0.9]
[1760796376589,0.79,185.43,185.4,0.2]
[1760796377910,0.67,185.43,185.4,0.2]
[1760796378210,0.12,185.45,185.41,0.7]
[1760796378411,0.67,185.47,185.42,0.7]
[1760796378707,0.12,185.46,185.42,0.7]
[1760796379798,0.12,185.46,185.42,5.3931271]
[1760796379992,26.43215324,185.63,185.42,5.3931271]
[1760796379993,0.79,185.5,185.43,0.7]
[1760796380203,0.79,185.5,185.4,0.9]
[1760796380406,0.67,185.49,185.4,6.29368001]
[1760796380617,0.79,185.48,185.4,6.29368001]
[1760796380819,0.79,185.48,185.4,5.59368001]
[1760796380993,0.79,185.48,185.41,0.7]
[1760796381620,0.79,185.48,185.41,6.09328814]
[1760796382399,0.79,185.48,185.4,0.2]
[1760796382400,0.67,185.47,185.4,0.2]
[1760796382708,0.12,185.46,185.4,0.2]
[1760796382925,0.67,185.45,185.4,0.2]
[1760796383214,0.79,185.44,185.4,0.2]
[1760796384227,0.12,185.44,185.4,0.2]
[1760796384418,0.67,185.43,185.4,0.2]
[1760796387099,0.12,185.42,185.4,0.2]
[1760796387306,0.67,185.41,185.4,0.2]
[1760796390511,6.18345234,185.41,185.4,0.2]
[1760796390716,39.93992755,185.41,185.4,0.2]
[1760796390922,11.66647521,185.41,185.4,0.2]
[1760796391100,17.05992755,185.41,185.4,0.2]
[1760796391300,39.93992755,185.41,185.4,0.2]
[1760796391504,17.05992755,185.41,185.4,0.2]
[1760796391705,39.93992755,185.41,185.4,0.2]
[1760796391894,17.05992755,185.41,185.4,0.2]
[1760796394596,19.22448827,185.41,185.4,0.2]
[1760796395016,35.41448827,185.41,185.4,0.2]
[1760796396615,35.41448827,185.41,185.39,1e-08]
[1760796396616,52.06647521,185.4,185.39,1e-08]
[1760796396807,63.51860296,185.4,185.39,1e-08]
[1760796397117,44.58234621,185.4,185.39,1e-08]
[1760796397309,69.58234621,185.4,185.39,1e-08]
[1760796397907,44.58234621,185.4,185.39,1e-08]
[1760796400627,154.36647521,185.39,185.38,0.2]
[1760796400812,159.19734318,185.39,185.38,0.2]
[1760796401015,171.6488391,185.39,185.38,0.2]
[1760796401627,173.81398565,185.39,185.38,0.2]
[1760796402327,148.81398565,185.39,185.38,0.2]
[1760796402831,171.6488391,185.39,185.38,0.2]
[1760796403010,173.81375128,185.39,185.38,0.2]
[1760796403928,71.51375128,185.39,185.38,0.2]
[1760796404116,71.63375128,185.39,185.38,0.2]
[1760796404722,71.63375128,185.39,185.38,1e-08]
[1760796404925,66.80288331,185.39,185.38,1e-08]
[1760796405123,73.63375127,185.39,185.38,1e-08]
[1760796407414,27.06647521,185.36,185.35,0.1]
[1760796407628,32.01734318,185.36,185.35,0.1]
[1760796407832,32.67734318,185.36,185.35,0.1]
[1760796408345,34.84260693,185.36,185.35,0.1]
[1760796408717,32.67734318,185.36,185.35,0.1]